Cogmind - Beta 10.2 @@@ ROGUE MODE // 2021.05.18 @ 03:01:55 Player: Mares Result: Destroyed by as-14510 with Assembled Blade Performance ------------- Evolutions (0) 0 Regions Visited (2) 400 Robots Destroyed (26) 130 Value Destroyed (572) 572 Prototype IDs (2) 40 Alien Tech Used (0) 0 Bonus (0) 0 TOTAL SCORE: 1142 Bonus ------- None Cogmind --------- Core Integrity 0/250 Matter 228/300 Energy 80/100 System Corruption 3% Temperature Cool (0) Movement Walking (210) Ox3 Location -10/Mines Parts ------- > --- POWER (1) -------- (None) > --- PROPULSION (2) --- Aluminum Leg > --- UTILITY (2) ------ High-capacity Storage Unit > --- WEAPON (2) ------- Mini Grenade Launcher Flail > --- INVENTORY (12) --- Light Ion Engine Light Deuterium Engine Light Treads Combat Airjet Small Storage Unit Seismic Analyzer Improved Light Armor Plating Hacking Suite Light Cannon Light Cannon Mini Grenade Launcher Peak State ------------ > --- POWER ------------ Light Nuclear Core > --- PROPULSION ------- Aluminum Leg Aluminum Leg > --- UTILITY ---------- High-capacity Storage Unit Light Armor Plating > --- WEAPON ----------- Light Assault Rifle Mini Grenade Launcher > --- INVENTORY -------- Light Treads Small Storage Unit Seismic Analyzer Hacking Suite Mini Grenade Launcher Flail [Rating: 11] Favorites ----------- Power Light Ion Engine Engine Light Ion Engine Power Core Light Nuclear Core Propulsion Wheel Leg Aluminum Leg Wheel Wheel Utility Small Storage Unit Storage Small Storage Unit Processor Improved Targeting Computer Protection Light Armor Plating Weapon Mini Grenade Launcher Energy Gun Medium Laser Ballistic Gun Light Assault Rifle Launcher Mini Grenade Launcher Build | -11 -10 -10 ------- Run | Scr Mat Min Slots Evolved . | . . . Power . | . . . Propulsion . | . . . Utility . | . . . Weapon . | . . . Parts Attached 17 | 6 10 1 Power 2 | 1 1 . Engine 1 | 1 . . Core 1 | . 1 . Reactor . | . . . Propulsion 4 | 2 2 . Treads . | . . . Leg 2 | . 2 . Wheel 2 | 2 . . Hover . | . . . Flight . | . . . Utility 4 | 1 3 . Device . | . . . Storage 2 | 1 1 . Processor 1 | . 1 . Hackware . | . . . Protection 1 | . 1 . Artifact . | . . . Weapon 7 | 2 4 1 Energy Gun 3 | 2 1 . Energy Cannon . | . . . Ballistic Gun 1 | . 1 . Ballistic Cannon . | . . . Launcher 2 | . 2 . Special Weapon . | . . . Impact Weapon 1 | . . 1 Slashing Weapon . | . . . Piercing Weapon . | . . . Special Melee Weapon . | . . . Unidentified Prototypes . | . . . Parts Lost 9 | . 6 3 Power 2 | . 1 1 Propulsion 3 | . 2 1 Utility 1 | . 1 . Weapon 3 | . 2 1 Highest Loss Streak 3 | . 3 3 Average Slot Usage (%) 91 | . 93 72 Engine 7 | . 7 . Core 6 | . 5 11 Leg 12 | . 10 24 Wheel 14 | . 15 . Storage 14 | . 14 14 Processor 1 | . 1 . Protection 10 | . 11 . Energy Gun 11 | . 12 . Ballistic Gun 6 | . 6 7 Launcher 7 | . 6 14 Naked Turns . | . . . Heaviest Build 41 | 11 41 39 Greatest Support 20 | 20 20 20 Greatest Overweight (x) 4 | . 4 3 Average Overweight (x) . | . . 1 Largest Inventory Capacity 12 | 6 12 12 Average Capacity 7 | 5 6 12 Most Carried 12 | 6 9 12 Average Carried 6 | 2 5 9 Final Capacity 12 | 6 12 12 Final Carried 11 | 6 9 11 Class Distribution -------------------- 100% | Mutant Dominant Class ---------------- Mutant | -10/Materials Mutant | -10/Mines Resources | -11 -10 -10 ----------- Run | Scr Mat Min Matter Collected 461 | 202 243 16 Remotely . | . . . Salvage Created 757 | . 685 72 Parts 59 | . 59 . Haulers Intercepted 2 | . 2 . Recyclers Shooed . | . . . Parts Field Recycled . | . . . Retrieved Matter . | . . . Parts Self-Destructed . | . . . Prevented . | . . . Kills | -11 -10 -10 ------- Run | Scr Mat Min Combat Hostiles Destroyed 27 | . 14 13 Guns 6 | . 6 . AOE 21 | . 8 13 Classes Destroyed 9 | . 8 1 Worker 2 | . 2 . Builder 2 | . 2 . Hauler 2 | . 2 . Recycler 1 | . 1 . Operator 2 | . 2 . Watcher 3 | . 3 . Swarmer 3 | . 3 . Grunt 11 | . 11 . Assembled 13 | . . 13 Best Kill Streak 11 | . 5 11 Combat Bots Only 11 | . 3 11 Max Kills in Single Turn 5 | . 3 5 Gunslinging . | . . . Exploded 5 | . 3 5 Melee . | . . . Uniques/NPCs Destroyed . | . . . Combat | -11 -10 -10 -------- Run | Scr Mat Min Damage Taken 992 | . 737 255 Core 279 | . 217 62 Absorbed by Shields . | . . . Core Remaining (%) 100 | 100 . . Volleys Fired 65 | . 58 7 Largest 2 | . 2 1 Hottest 90 | . 90 30 Shots Fired 87 | . 80 7 Gun 74 | . 74 . Cannon . | . . . Launcher 13 | . 6 7 Special . | . . . Kinetic 23 | . 23 . Thermal 21 | . 21 . Explosive 13 | . 6 7 Electromagnetic 30 | . 30 . Robot Hit Streak 8 | . 8 3 Robot Miss Streak 3 | . 3 2 Penetration Max . | . . . Secondary Targets . | . . . Shots Hit Robots 52 | . 48 4 Core Hits 62 | . 40 22 Critical Hits . | . . . Critical Kills . | . . . Critical Parts Destroyed . | . . . Melee Attacks . | . . . Impact . | . . . Slashing . | . . . Piercing . | . . . Sneak Attacks . | . . . Combat Hostiles . | . . . Follow-up Attacks . | . . . Damage Inflicted 2026 | . 1375 651 Guns 576 | . 576 . Cannons . | . . . Explosions 1450 | . 799 651 Melee . | . . . Ramming . | . . . Kinetic 101 | . 101 . Thermal 304 | . 304 . Explosive 1346 | . 695 651 Electromagnetic 275 | . 275 . Impact . | . . . Slashing . | . . . Piercing . | . . . Highest Corruption 3 | . 3 3 Average Corruption 2 | . 2 3 Corruption Purged . | . . . Effects 28 | . 24 4 Message Errors 9 | . 8 1 Matter Fused 7 | . 6 1 Heat Flow Errors 2 | . 2 . Energy Discharges 3 | . 2 1 Data Loss (minor) 3 | . 3 . Targeting Errors 3 | . 2 1 Weapon Failures 1 | . 1 . Overload Shots . | . . . Overflow Damage 51 | . 51 . Projectiles . | . . . Explosions 51 | . 51 . Melee . | . . . Knockbacks . | . . . Impact . | . . . Kinetic . | . . . Secondary . | . . . Self-Inflicted Damage 257 | . 257 . Shots 3 | . 3 . Rammed . | . . . Targets Rammed . | . . . Kicked . | . . . Crushed . | . . . Highest Temperature 200 | . 200 . Average Temperature 41 | . 41 . Received Heat Transfer 243 | . 243 . Siege Activations . | . . . Robots Corrupted . | . . . Combat Hostiles . | . . . Parts Fried 2 | . 2 . Impact Corruptions . | . . . Robots Melted . | . . . Combat Hostiles . | . . . Parts Melted 2 | . 2 . Heat Transferred 742 | . 742 . Parts Sabotaged . | . . . Parts Stolen . | . . . Parts Stripped . | . . . Power Chain Reactions 1 | . 1 . Missiles Intercepted . | . . . Alert | -11 -10 -10 ------- Run | Scr Mat Min Peak Influence 246 | . 246 124 Initial 94 | . . 94 Average 104 | . 111 101 Maximum Alert Level 1 | . 1 . Low Security (%) 75 | 100 71 100 Level 1 24 | . 28 . Level 2 . | . . . Level 3 . | . . . Level 4 . | . . . Level 5 . | . . . High Security . | . . . Max Security . | . . . Squads Dispatched 4 | . 4 . Investigation 2 | . 2 . Extermination . | . . . Reinforcement 2 | . 2 . Assault . | . . . Garrison . | . . . Intercept . | . . . Construction Impeded . | . . . Haulers Reinforced . | . . . Stealth | -11 -10 -10 --------- Run | Scr Mat Min Distress Signals 1 | . 1 . Communications Jammed . | . . . Distress Signals . | . . . Times Spotted 43 | . 24 19 Peak Tracking Total 9 | . 3 9 Tactical Retreats 3 | . 2 1 Traps | -11 -10 -10 ------- Run | Scr Mat Min Traps Triggered 5 | . 5 . Indirectly . | . . . Trap Hack Attempts . | . . . Triggered . | . . . Disarmed . | . . . Reprogrammed . | . . . Reused . | . . . Traps Extracted . | . . . Installed . | . . . Triggered . | . . . Machines | -11 -10 -10 ---------- Run | Scr Mat Min Machines Disabled 4 | . 4 . Max in Single Turn 1 | . 1 . Machines Sabotaged . | . . . Garrisons Compromised . | . . . Overloaded Fab Kills . | . . . Fab Network Shutdowns . | . . . Hacking | -11 -10 -10 --------- Run | Scr Mat Min Machines Accessed 6 | . 6 . Terminals 5 | . 5 . Fabricators . | . . . Repair Stations . | . . . Recycling Units 1 | . 1 . Scanalyzers . | . . . Garrison Access . | . . . Total Hacks 19 | . 19 . Successful 12 | . 12 . Failed 7 | . 7 . Catastrophic 1 | . 1 . Database Lockouts . | . . . Manual 11 | . 11 . Terminals 18 | . 18 . Fabricators . | . . . Repair Stations . | . . . Recycling Units 1 | . 1 . Scanalyzers . | . . . Garrison Access . | . . . Terminal Hacks 7 | . 7 . Prototype ID Bank 1 | . 1 . Emergency Access Points 1 | . 1 . Unreport Threat 2 | . 2 . Hauler Manifests 1 | . 1 . Zone Layout 2 | . 2 . Fabricator Hacks . | . . . Repair Station Hacks . | . . . Recycling Unit Hacks 1 | . 1 . Report Inventory 1 | . 1 . Scanalyzer . | . . . Garrison Access Hacks . | . . . Unauthorized Hacks 4 | . 4 . Terminals 4 | . 4 . Track 3 | . 3 . Botnet 1 | . 1 . Fabricators . | . . . Repair Stations . | . . . Recycling Units . | . . . Scanalyzers . | . . . Garrison Access . | . . . Data Cores Recovered . | . . . Used . | . . . Hacking Detections 7 | . 7 . Full Trace Events . | . . . Feedback Events . | . . . Feedback Blocked . | . . . Robot Schematics Acquired . | . . . Robots Built . | . . . Matter . | . . . Time . | . . . Total Robot Build Rating . | . . . Part Schematics Acquired . | . . . Parts Built . | . . . Matter . | . . . Time . | . . . Total Part Build Rating . | . . . Parts Repaired . | . . . Time . | . . . Parts Recycled . | . . . Recycled Matter . | . . . Retrieved Matter . | . . . Retrieved Components . | . . . Parts Scanalyzed . | . . . Part Schematics Acquired . | . . . Parts Damaged . | . . . Bothacking | -11 -10 -10 ------------ Run | Scr Mat Min Used RIF Installer . | . . . Robots Hacked . | . . . Non-combat . | . . . Combat . | . . . Robot Hacks Applied . | . . . Relay Couplers Released . | . . . Robots Rewired . | . . . Allies Hacked . | . . . Hacks Repelled . | . . . Allies | -11 -10 -10 -------- Run | Scr Mat Min Total Allies . | . . . Largest Group . | . . . Highest-Rated Group . | . . . Highest-Rated Ally . | . . . Total Orders . | . . . Ally Attacks . | . . . Total Damage . | . . . Kills . | . . . Allies Corrupted . | . . . Allies Melted . | . . . Intel | -11 -10 -10 ------- Run | Scr Mat Min Robot Analysis Total . | . . . Derelict Logs Recovered . | . . . Drone Launches . | . . . Drone Recoveries . | . . . Exploration | -11 -10 -10 ------------- Run | Scr Mat Min Turns Passed 1174 | 61 1006 107 Spaces Moved 868 | 52 765 51 Core 10 | 3 7 . Treads . | . . . Legs 235 | . 184 51 Wheels 623 | 49 574 . Hover . | . . . Flight . | . . . Fastest Speed 50 | 50 80 150 Average Speed 97 | 78 94 161 Slowest Speed 250 | 80 250 210 Overloaded Moves . | . . . Propulsion Burnouts . | . . . Robots Hopped . | . . . Cave-ins Triggered . | . . . Exploration Rate (%) 41 | 3 99 21 Regions Visited 2 Branch Regions 1 Pre-discovered Areas . | . . . Known Exits Taken . | . . . Unknown Exits Taken 2 | 1 1 . Scrap Searched . | . . . Spaces Dug 23 | . 23 . Terrain Destroyed 202 | . 128 74 Melee . | . . . Projectile . | . . . AOE 202 | . 128 74 Terrain Rammed . | . . . Walls Destroyed . | . . . Machines Disabled . | . . . Actions | -11 -10 -10 --------- Run | Scr Mat Min Total 1108 | 69 970 69 Wait 124 | 6 111 7 Move 866 | 51 764 51 Hop . | . . . Pick Up 24 | 6 15 3 Fast Attach 12 | 6 6 . Attach 3 | . 2 1 Detach . | . . . Swap 2 | . 2 . Drop 12 | . 12 . Fire 65 | . 58 7 Melee . | . . . Ram . | . . . Kick . | . . . Crush . | . . . Escape Stasis . | . . . Rewire . | . . . Trap . | . . . Miscellaneous . | . . . Route ------- -11/Scrapyard -10/Materials (discovered 4 exits: [*Mat x3] / [*Min]) -10/Mines History --------- Turn | Location | Event 11 | -11/Scrapyard | Discovered new exit (range 16) 62 | -11/Scrapyard | Entered Materials 228 | -10/Materials | Discovered new exit (range 11) 301 | -10/Materials | Build established: Mutant 365 | -10/Materials | Discovered new exit (range 20) 566 | -10/Materials | Discovered new exit (range 6) 663 | -10/Materials | Lost 3 parts (1p2n) 912 | -10/Materials | Core integrity fell below 50% 918 | -10/Materials | Core integrity fell below 20% 1015 | -10/Materials | Discovered new exit (range 7) 1068 | -10/Materials | Entered Mines 1069 | -10/Mines | Assembled infested the area 1074 | -10/Mines | Assisted by a Guerilla fighting off Assembled 1152 | -10/Mines | Destroyed 11 combat bots 1175 | -10/Mines | Destroyed by as-14510 with Assembled Blade Last Messages --------------- 01155_ U-05 Engineer builds a Wall. 01155_ Lgt. Nuclear Core destroyed. 01155_ R-06 Scavenger destroyed. 01158_ The unstable cave ceiling collapses. 01158_ U-05 Engineer lays Concrete. 01160_ The unstable cave ceiling collapses. 01160_ as-70140 destroyed. 01160_ U-05 Engineer lays Concrete. 01161_ The unstable cave ceiling collapses. 01163_ U-05 Engineer builds a Wall. 01163_ U-05 Engineer lays Concrete. 01164_ The unstable cave ceiling collapses. 01164_ U-05 Engineer lays Concrete. 01165_ The unstable cave ceiling collapses. 01165_ U-05 Engineer builds a Wall. 01167_ U-05 Engineer lays Concrete. 01168_ U-05 Engineer builds a Wall. 01169_ The unstable cave ceiling collapses. 01173_ U-05 Engineer lays Concrete. 01175_ U-05 Engineer builds a Wall. Map ----- +----------------------------------------------------+ | | | ?????????????????????????????????????????????????? | | ?????????????????????????????????????????????????? | | ?????????????????????????????????????????????????? | | ##############???????????????????????????????????? | | # #???????????????????????????????????? | | # #???????????????????????????????????? | | + #####????????????# ??? ?????????????? | | + #???????????# ?? ?????????????? | | # ### #?????????## ??????????????? | | # #?# #?????????# #??????????????? | | ### #?# #####????## """ #??????????????? | | ### #?# #???## """ #??????????????? | | #?##### #???# """ #??????????????? | | #?????# #???# ????????????????? | | ### #?????# #?### #?????????????????? | | ??############?????# ### #?????????????????? | | ???????????????????# ## ##????????????????? | | ???????????????????# #### # #????????????????? | | ???????????????????# # #????###### ??????? | | ???????????????????#### # # #?# ?????? | | ??????????????????????## ## ### ?????? | | ???????????????????????## ?????? | | ??????????????????????### ?????? | | ??????????????????????# ### ?????? | | ??????????????????????# @ ##?? ?????? | | ?????????????????????# a u ??????? | | ????????????????????# ##### k ???????? | | ????????????????????# #????? ???????? | | ????????????????????# #??????? ????????? | | ????????????????????# ##???????? ????????? | | ????????????????????# #???????????????????? | | ????????????????????## #???????????????????? | | ?????????????????????# ##???????????????????? | | ????????????????????? %% ##????????????????????? | | ???????????????????? = #????????????????????? | | ????????????????????# ????????????????????? | | ????????????????????# ????????????????????? | | ????????????????????# ????????????????????? | | ?????????????????????# ?????????????????????? | | ??????????????????????? ?????????????????????? | | ?????????????????????????????????????????????????? | | ?????????????????????????????????????????????????? | | ?????????????????????????????????????????????????? | | ?????????????????????????????????????????????????? | | ?????????????????????????????????????????????????? | | ?????????????????????????????????????????????????? | | ?????????????????????????????????????????????????? | | ?????????????????????????????????????????????????? | | ?????????????????????????????????????????????????? | +----------------------------------------------------+ Best States ------------- Heat Dissipation 25 Energy Generation 14 Energy Capacity 160 Matter Stores 300 Matter Capacity 300 Sight Range 16 Terrain Scan Density 10 Armor Coverage 150 Evasion (%) 44 Targeting Accuracy 6 Item Schematics ----------------- None Robot Schematics ------------------ None Fabricated ------------ Nothing Alien Tech Used ----------------- None Achievements -------------- None Challenges ------------ None Game ------ Seed ChargeHardlightSabre Manual? 0 Play Time 00:19:11 Cumulative 44.7 hours Start 2021.05.18 @ 02:40:18 End 2021.05.18 @ 03:01:55 Sessions 1 Manual Loads 0 Difficulty Rogue Special Mode None Game No. 23 Rogue 23 Adventurer 0 Explorer 0 Win Type - Total 0 Types 0/0/0/0/0/0/0/0/0 Lore% 32 Gallery% 43 Achievement% 33 Wizard Run 0 Options --------- ASCII 0 Keyboard 0 Movement Mouse Keybinds 0 Fullscreen 1 Font 18/SmallcapsGlow Map View 76x50 Tactical HUD 1 Map Filters NONE Filters NONE Steam 1 RUN: 01a8f77f-e694-4d0a-befe-8804b4f41366